bitfinex-derivatives/quotes_ETHF0:USTF0_20250518
["timestamp","ask_amount","ask_price","bid_price","bid_amount"]
[1747563132754,0.79691,2509.0,2508.9,0.79689]
[1747563133048,0.79691,2509.0,2508.9,2.79819]
[1747563133747,2.6127,2509.3,2508.9,3.16587379]
[1747563133957,0.79687,2509.1,2509.0,2.85574]
[1747563134256,0.79687,2509.1,2509.0,2.0589]
[1747563134753,0.79687,2509.1,2509.0,2.15108003]
[1747563135250,0.79687,2509.1,2509.0,5.20908003]
[1747563135746,0.79687,2509.1,2509.0,5.1169]
[1747563136051,0.79687,2509.1,2509.0,5.91378]
[1747563136252,0.79687,2509.1,2509.0,7.07835379]
[1747563141354,0.79687,2509.1,2509.0,4.02035379]
[1747563142156,0.79687,2509.1,2509.0,7.07835379]
[1747563144155,0.79687,2509.1,2509.0,4.02035379]
[1747563145247,0.79687,2509.1,2509.0,7.07835379]
[1747563146153,0.6729,2509.3,2509.0,7.07835379]
[1747563146154,0.6729,2509.3,2509.0,6.43127379]
[1747563146350,11.8715,2509.6,2509.5,0.79672]
[1747563146549,3.2078,2509.6,2509.5,0.79672]
[1747563146750,5.13249869,2509.8,2509.7,0.79666]
[1747563146950,5.92912869,2509.8,2509.7,0.79666]
[1747563147348,3.15229869,2509.8,2509.7,4.00446]
[1747563147547,10.78672467,2510.0,2509.9,0.79659]
[1747563147747,10.78672467,2510.0,2509.9,16.52259]
[1747563147954,1.30548943,2510.0,2509.9,25.93508315]
[1747563148152,1.30548943,2510.0,2509.9,30.31058315]
[1747563148754,2.10204943,2510.0,2509.9,3.058]
[1747563149257,0.79663,2509.8,2509.7,3.2078]
[1747563149452,0.79666,2509.7,2509.6,2.16139]
[1747563149857,0.79664,2509.8,2509.7,0.79665]
[1747563150858,2.10051,2509.9,2509.8,0.79663]
[1747563151163,0.7966,2509.9,2509.8,0.7966]
[1747563151656,0.7966,2509.9,2509.8,2.1613]
[1747563152153,0.88878003,2509.9,2509.8,2.1613]
[1747563152954,0.7966,2509.9,2509.8,2.1613]
[1747563153559,0.7966,2509.9,2509.8,1.3647]
[1747563154059,0.7966,2509.9,2509.8,2.16133]
[1747563155457,0.7966,2509.9,2509.8,1.3647]
[1747563156563,0.7966,2509.9,2509.8,2.16133]
[1747563156968,2.16918,2510.0,2509.9,0.79659]
[1747563157156,0.79649,2510.3,2510.2,0.79649]
[1747563157462,1.9742,2510.3,2510.0,1.2949]
[1747563157662,2.77067,2510.3,2510.2,0.7965]
[1747563158360,5.82867,2510.3,2510.2,0.7965]
[1747563159065,5.0322,2510.3,2510.2,0.7965]
[1747563159367,1.44066,2510.4,2510.3,0.79647]
[1747563163459,1.44066,2510.4,2510.3,2.06227]
[1747563168669,0.79646,2510.4,2510.3,2.06227]
[1747563169060,2.10082,2510.5,2510.4,0.79644]
[1747563169261,2.10082,2510.5,2510.4,2.14914]
[1747563170172,5.15882,2510.5,2510.4,2.14914]
[1747563170674,0.79644,2510.4,2510.3,0.79644]
[1747563170875,2.04044,2510.4,2510.3,0.79644]
[1747563171471,2.13262003,2510.4,2510.3,0.79644]
[1747563173475,2.04044,2510.4,2510.3,0.79644]
[1747563176775,2.04044,2510.4,2510.3,2.15114]
[1747563179077,2.04044,2510.4,2510.3,1.3547]
[1747563179376,0.79647,2510.3,2510.2,2.07448]
[1747563179575,2.07697,2510.3,2510.2,2.07448]
[1747563179775,2.07697,2510.3,2510.2,0.79648]
[1747563180374,0.7965,2510.2,2510.1,6.62231]
[1747563180577,3.3652,2510.2,2510.1,5.28231]
[1747563181071,3.3652,2510.2,2510.1,1.278]
[1747563181377,6.4232,2510.2,2510.1,1.278]
[1747563181578,6.4232,2510.2,2510.1,2.07453]
[1747563181769,5.6267,2510.2,2510.1,2.07453]
[1747563182168,3.058,2510.2,2510.1,2.07453]
[1747563182574,3.058,2510.2,2510.1,3.37323]
[1747563184076,2.14527,2510.3,2510.2,0.7965]
[1747563185076,0.7965,2510.2,2510.1,2.07451]
[1747563185275,3.85449,2510.3,2510.2,0.7965]
[1747563186478,3.058,2510.3,2510.2,0.7965]
[1747563186980,3.058,2510.3,2510.2,2.0429]
[1747563187280,2.09902,2510.5,2510.4,0.79644]
[1747563188081,5.15702,2510.5,2510.4,0.79644]
[1747563189485,0.79646,2510.4,2510.3,0.79644]
[1747563191988,0.79652,2510.2,2510.1,0.79651]
[1747563192290,3.85452,2510.2,2510.1,0.79651]
[1747563193497,3.85452,2510.2,2510.1,1.97704044]
[1747563193704,3.94670003,2510.2,2510.1,1.97704044]
[1747563194594,3.15018003,2510.2,2510.1,1.97704044]
[1747563194795,3.15018003,2510.2,2510.1,3.30904044]
[1747563194981,3.80848003,2510.2,2510.1,3.30904044]
[1747563196706,3.7163,2510.2,2510.1,3.30904044]
[1747563197199,3.058,2510.2,2510.1,3.30904044]
[1747563198107,0.79649,2510.3,2510.2,0.7965]
[1747563198403,0.79649,2510.3,2510.2,2.7622]
[1747563198607,0.79649,2510.3,2510.2,3.4282]
[1747563199107,0.79644,2510.5,2510.4,0.79641]
[1747563199405,0.79644,2510.4,2510.3,2.07264]
[1747563199709,0.79641,2510.5,2510.4,0.7964]
[1747563200208,5.17401,2510.5,2510.4,0.7964]
[1747563202211,4.3776,2510.5,2510.4,0.7964]
[1747563204411,3.058,2510.5,2510.4,0.7964]
[1747563205114,4.00416,2510.7,2510.6,0.79637]
[1747563205309,5.33956,2510.7,2510.6,0.79637]
[1747563206215,8.39756,2510.7,2510.6,0.79637]
[1747563206902,0.79637,2510.6,2510.5,1.47648]
[1747563207105,5.20007,2510.6,2510.5,1.47648]
[1747563208314,4.4037,2510.6,2510.5,1.47648]
[1747563208507,3.058,2510.6,2510.5,1.47648]
[1747563209107,4.4037,2510.6,2510.5,1.47648]
[1747563209307,5.20007,2510.6,2510.5,1.47648]
[1747563211213,2.14207,2510.6,2510.5,1.47648]
[1747563212108,5.20007,2510.6,2510.5,1.47648]
[1747563214118,4.4037,2510.6,2510.5,1.47648]
[1747563214319,5.20007,2510.6,2510.5,1.47648]
[1747563214514,3.85437,2510.6,2510.5,1.47648]
[1747563214724,3.058,2510.6,2510.5,1.47648]
[1747563215219,2.0078,2510.8,2510.7,0.79633]
[1747563215715,4.63128,2510.9,2510.8,0.7963]
[1747563215916,6.63418,2510.9,2510.8,0.7963]
[1747563216119,9.69218,2510.9,2510.8,0.7963]
[1747563217621,3.058,2510.9,2510.8,0.7963]
[1747563218319,7.17500411,2511.1,2511.0,0.79624]
[1747563219219,10.23300411,2511.1,2511.0,0.79624]
[1747563219722,11.02921411,2511.1,2511.0,0.79624]
[1747563220025,7.07869943,2511.1,2511.0,0.79624]
[1747563222726,5.77321,2511.1,2511.0,0.79624]
[1747563225323,0.79626,2511.0,2510.9,0.79625]
[1747563225521,2.16086,2511.0,2510.9,0.79625]
[1747563226230,5.21886,2511.0,2510.9,0.79625]
[1747563226631,0.7963,2510.9,2510.8,0.79629]
[1747563226833,2.1609,2510.9,2510.8,0.79629]
[1747563227234,5.2189,2510.9,2510.8,0.79629]
[1747563227633,4.4226,2510.9,2510.8,0.79629]
[1747563228135,5.21887,2510.9,2510.8,0.79629]
[1747563228534,0.79632,2510.8,2510.7,0.7963]
[1747563228727,2.6638,2510.8,2510.7,0.7963]
[1747563229033,3.4601,2510.8,2510.7,0.7963]
[1747563229336,6.5181,2510.8,2510.7,0.7963]
[1747563231131,6.5181,2510.8,2510.5,3.93799]
[1747563231132,0.79637,2510.7,2510.6,0.79635]
[1747563231335,0.79637,2510.6,2510.5,0.79637]
[1747563232133,3.85437,2510.6,2510.5,0.79637]
[1747563233133,0.79637,2510.6,2510.5,0.79637]
[1747563233435,2.08306,2510.7,2510.6,0.79637]
[1747563234139,5.14106,2510.7,2510.6,0.79637]
[1747563242244,4.3447,2510.7,2510.6,0.79637]
[1747563242439,4.3447,2510.7,2510.6,2.68847]
[1747563243044,5.14104,2510.7,2510.6,2.68847]
[1747563243543,0.79637,2510.6,2510.5,4.4856]
[1747563243734,2.16637,2510.6,2510.5,4.4856]
[1747563243936,2.16637,2510.6,2510.5,3.2078]
[1747563244144,5.22437,2510.6,2510.5,3.2078]
[1747563244644,0.79643,2510.4,2510.3,1.2779]
[1747563245144,3.85443,2510.4,2510.3,0.79646]
[1747563245336,0.79646,2510.3,2510.2,3.24566776]
[1747563245542,2.16646,2510.3,2510.2,2.05187]
[1747563245846,3.058,2510.4,2510.3,0.79646]
[1747563246048,3.058,2510.4,2510.3,5.88976]
[1747563246249,0.6293,2510.8,2510.7,0.79634]
[1747563246437,1.37,2510.9,2510.8,0.7963]
[1747563247042,2.16627,2510.9,2510.8,0.7963]
[1747563247243,5.22427,2510.9,2510.8,0.7963]
[1747563247842,3.85427,2510.9,2510.8,2.0818]
[1747563248242,0.79627,2510.9,2510.8,2.0818]
[1747563249241,2.05976,2511.0,2510.9,0.79627]
[1747563249436,1.2783,2511.1,2511.0,0.79624]
[1747563249744,2.82885,2511.3,2511.2,0.79618]
[1747563250145,5.88685,2511.3,2511.2,0.79618]
[1747563250347,0.79618,2511.2,2511.1,1.42628]
[1747563251146,2.0327,2511.3,2511.2,0.79618]
[1747563251349,2.0327,2511.3,2511.2,2.06168]
[1747563251743,1.30548943,2511.6,2511.5,0.79608]
[1747563251947,0.79609,2511.5,2511.4,0.79609]
[1747563252149,2.17469,2511.5,2511.4,0.79609]
[1747563252747,0.79611,2511.4,2511.3,2.06164]
[1747563252952,0.79611,2511.4,2511.3,1.2655]
[1747563253244,4.48581,2511.4,2511.3,2.06165]
[1747563253841,4.48581,2511.4,2511.3,1.2655]
[1747563254737,3.058,2511.4,2511.3,2.06165]
[1747563255544,3.85411,2511.4,2511.3,2.06165]
[1747563256052,3.058,2511.4,2511.3,2.06165]
[1747563256348,0.79611,2511.4,2511.3,2.06165]
[1747563256544,0.79615,2511.3,2511.2,0.79617]
[1747563256746,2.05875,2511.3,2511.2,2.06227]
[1747563257146,5.11675,2511.3,2511.2,2.06227]
[1747563257652,0.79618,2511.2,2511.1,3.8379]
[1747563257842,2.72928,2511.2,2511.1,5.104]
[1747563258342,2.72928,2511.2,2511.1,5.90018]
[1747563258848,1.9331,2511.2,2511.1,5.90018]
[1747563259048,0.79617,2511.3,2511.2,0.79618]
[1747563259243,0.79617,2511.3,2511.2,2.11338]
[1747563260353,2.82484,2511.4,2511.3,0.79615]
[1747563262155,0.79609,2511.5,2511.4,0.79611]
[1747563262455,0.79608,2511.6,2511.5,0.79607]
[1747563262655,0.7961,2511.5,2511.4,0.79609]
[1747563262956,0.79608,2511.6,2511.5,0.79606]
[1747563263352,0.79608,2511.6,2511.5,1.43846]
[1747563263858,0.79608,2511.6,2511.5,0.6424]
[1747563264048,2.15218,2511.6,2511.5,0.6424]
[1747563264248,5.21018,2511.6,2511.5,0.6424]
[1747563264856,5.21018,2511.6,2511.5,1.43848]
[1747563265054,5.21018,2511.6,2511.5,2.019]
[1747563266952,5.21018,2511.6,2511.5,2.81508]
[1747563268259,2.15218,2511.6,2511.5,2.81508]
[1747563269159,0.79596,2512.0,2511.9,0.79594]
[1747563269359,0.796,2511.9,2511.8,0.79597]
[1747563269762,2.1397,2511.9,2511.8,0.79597]
[1747563270263,0.79599,2511.8,2511.7,2.16779]
[1747563273460,0.79599,2511.8,2511.7,2.16782]
[1747563273649,0.79599,2511.8,2511.7,1.3718]
[1747563274152,3.85399,2511.8,2511.7,2.16782]
[1747563274561,3.85399,2511.8,2511.7,1.3718]
[1747563274763,3.85399,2511.8,2511.7,2.16782]
[1747563274967,3.058,2511.8,2511.7,2.16782]
[1747563275163,1.3437,2511.9,2511.8,0.79599]
[1747563275353,1.3437,2511.9,2511.8,2.14929]
[1747563275752,0.75528003,2512.0,2511.9,0.79596]
[1747563276059,1.45902,2512.0,2511.9,2.14926]
[1747563276661,0.79587,2512.3,2512.2,0.79583]
[1747563276865,2.05287,2512.3,2512.2,0.79583]
[1747563277263,5.11087,2512.3,2512.2,0.79583]
[1747563277968,4.315,2512.3,2512.2,0.79583]
[1747563278160,1.257,2512.3,2512.2,0.79583]
[1747563278767,4.00361,2512.4,2512.3,0.79583]
[1747563279062,3.2078,2512.4,2512.3,0.79583]
[1747563279460,1.30548943,2512.8,2512.3,20.59815329]
[1747563279764,1.30548943,2512.8,2512.7,0.7957]
[1747563280158,4.36348943,2512.8,2512.7,0.7957]
[1747563281463,4.36348943,2512.8,2512.7,2.0899]
[1747563281659,4.36348943,2512.8,2512.7,5.2977]
[1747563282261,1.30548943,2512.8,2512.7,5.2977]
[1747563283262,0.79564,2512.9,2512.7,5.2977]
[1747563283263,0.79564,2512.9,2512.8,0.79567]
[1747563283463,0.79564,2512.9,2512.8,2.09137]
[1747563283871,3.43673,2513.0,2512.9,0.79564]
[1747563284167,5.6991,2513.0,2512.9,2.09134]
[1747563284969,5.6991,2513.0,2512.9,0.79564]
[1747563284970,6.49471,2513.0,2512.9,0.79564]
[1747563285568,0.79564,2512.9,2512.8,1.42955]
[1747563285766,2.11154,2512.9,2512.8,1.42955]
[1747563285967,1.3159,2512.9,2512.8,1.42955]
[1747563286164,3.058,2513.7,2512.8,5.6339]
[1747563286376,0.79549,2513.4,2513.0,1.98901]
[1747563286665,0.79549,2513.4,2513.3,0.79549]
[1747563287161,0.79547,2513.5,2513.4,0.79547]
[1747563288169,3.85347,2513.5,2513.4,0.79547]
[1747563288668,0.79554,2513.2,2513.1,0.79556]
[1747563288865,0.79556,2513.2,2513.1,0.79555]
[1747563289262,3.85356,2513.2,2513.1,0.79555]
[1747563289769,5.17476,2513.2,2513.1,0.79555]
[1747563290566,3.058,2513.2,2513.1,4.00335]
[1747563290964,3.058,2513.2,2513.1,44.80335]
[1747563291165,3.058,2513.2,2513.1,53.25545]
[1747563291561,3.058,2513.2,2513.1,13.79285]
[1747563292667,3.058,2513.2,2513.1,6.61165]
[1747563295265,1.3212,2513.3,2513.2,0.79554]
[1747563295766,1.5311,2513.4,2513.3,0.79551]
[1747563295966,0.5968,2513.4,2513.3,0.79551]
[1747563296169,3.6548,2513.4,2513.3,0.79551]
[1747563296965,4.9922,2513.4,2513.3,0.79551]
[1747563297362,4.9922,2513.4,2513.2,0.79553]
[1747563297567,2.13294,2513.3,2513.2,0.79553]
[1747563297763,1.3374,2513.3,2513.2,0.79553]
[1747563298169,4.3954,2513.3,2513.2,0.79553]
[1747563298673,0.79554,2513.2,2513.1,4.00336]
[1747563298875,1.3224,2513.2,2513.1,4.00336]
[1747563299070,5.17594,2513.2,2513.1,4.00336]
[1747563300280,4.3804,2513.2,2513.1,4.00336]
[1747563300676,5.17594,2513.2,2513.1,4.00336]
[1747563302579,5.17594,2513.2,2513.1,3.2078]
[1747563303075,5.17594,2513.2,2513.1,4.00338]
[1747563303671,4.3804,2513.2,2513.1,4.00338]
[1747563304870,4.3804,2513.2,2513.1,5.28078]
[1747563305873,5.17594,2513.2,2513.1,4.4852]
[1747563306079,5.17594,2513.2,2513.1,3.2078]
[1747563306276,5.26812003,2513.2,2512.7,1.3174]
[1747563306580,0.7957,2512.8,2512.5,1.19379776]
[1747563306872,0.7957,2512.8,2512.7,0.79568]
[1747563307378,3.8537,2512.8,2512.7,0.79568]
[1747563307570,0.79573,2512.7,2512.6,0.79572]
[1747563308080,0.79573,2512.6,2512.5,1.19379776]
[1747563309172,3.85373,2512.6,2512.5,1.19379776]
[1747563309683,0.79585,2512.3,2512.2,0.79586]
[1747563310276,3.85385,2512.3,2512.2,2.09616]
[1747563311580,0.79586,2512.2,2512.1,3.2078]
[1747563311778,1.98966,2512.2,2511.8,1.19379776]
[1747563311980,0.79596,2511.9,2511.8,1.98977776]
[1747563312179,3.85396,2511.9,2511.8,1.98977776]
[1747563312983,3.85396,2511.9,2511.8,0.79598]
[1747563313883,3.058,2511.9,2511.8,0.79598]
[1747563314483,3.058,2511.9,2511.8,2.16268]
[1747563315287,3.85396,2511.9,2511.8,2.16268]
[1747563316880,3.85396,2511.9,2511.8,1.3667]
[1747563318389,3.85396,2511.9,2511.8,2.16269]
[1747563318887,0.79599,2511.8,2511.7,4.66809]
[1747563320190,3.85399,2511.8,2511.7,4.66809]
[1747563322691,3.058,2511.8,2511.7,4.66809]
[1747563323192,0.68778003,2511.9,2511.8,0.79599]
[1747563323386,0.68778003,2511.9,2511.8,2.08019]
[1747563323588,0.5956,2511.9,2511.8,2.08019]
[1747563323794,1.39156,2511.9,2511.8,2.08019]
[1747563324189,4.44956,2511.9,2511.8,2.08019]
[1747563324595,4.54174003,2511.9,2511.8,2.08019]
[1747563325793,0.79599,2511.8,2511.7,3.8721]
[1747563325993,2.14109,2511.8,2511.7,4.66812]
[1747563326196,5.19909,2511.8,2511.7,4.66812]
[1747563326393,5.19909,2511.8,2511.7,1.46032]
[1747563326786,5.19909,2511.8,2511.7,4.66812]
[1747563327189,3.058,2511.8,2511.7,4.66812]
[1747563328197,0.68778003,2511.9,2511.8,0.79599]
[1747563328393,0.68778003,2511.9,2511.8,2.08569]
[1747563329295,3.74578003,2511.9,2511.8,2.08569]
[1747563329897,4.54174003,2511.9,2511.8,2.08569]
[1747563330086,5.87194003,2511.9,2511.8,2.08569]
[1747563331000,4.54174003,2511.9,2511.8,2.08569]
[1747563332999,0.79599,2511.8,2511.7,4.6681]
[1747563333299,2.77939,2511.8,2511.7,4.6681]
[1747563334302,5.83739,2511.8,2511.7,4.6681]
[1747563334503,5.83739,2511.8,2511.7,1.4603]
[1747563334801,5.83739,2511.8,2511.7,4.6681]
[1747563335099,5.0414,2511.8,2511.7,4.6681]
[1747563335301,3.058,2511.8,2511.7,4.6681]
[1747563335702,3.85399,2511.8,2511.7,4.6681]
[1747563336201,3.058,2511.8,2511.7,4.6681]
[1747563336406,3.85399,2511.8,2511.7,4.6681]
[1747563337701,3.85399,2511.8,2511.7,5.84320127]
[1747563338303,3.058,2511.8,2511.7,5.84320127]
[1747563338702,3.058,2511.8,2511.7,2.63540127]
[1747563342111,3.058,2511.8,2511.7,3.90660127]
[1747563342303,3.058,2511.8,2511.7,7.11440127]
[1747563343111,1.62278003,2511.9,2511.8,0.79599]
[1747563343303,1.62278003,2511.9,2511.8,2.06719]
[1747563344107,4.68078003,2511.9,2511.8,2.06719]
[1747563344507,4.68078003,2511.9,2511.8,3.24229127]
[1747563346203,5.47674003,2511.9,2511.8,3.24229127]
[1747563346405,6.84574003,2511.9,2511.8,3.24229127]
[1747563347098,6.84574003,2511.9,2511.8,1.97109127]
[1747563347702,6.84574003,2511.9,2511.8,1.17510127]
[1747563350207,2.43721117,2513.4,2513.0,0.79561]
[1747563350509,1.9353,2513.3,2513.0,0.79561]
[1747563350710,13.00471,2513.2,2512.6,3.2078]
[1747563350911,0.7957,2512.7,2512.6,3.2078]
[1747563351114,0.79569,2512.8,2512.6,4.40159776]
[1747563351406,0.6306,2512.7,2512.6,5.19731776]
[1747563351610,1.9353,2512.7,2512.6,5.19731776]
[1747563352310,4.9933,2512.7,2512.6,5.19731776]
[1747563354215,4.9933,2512.7,2512.6,1.98951776]
[1747563354513,4.9933,2512.7,2512.6,0.79572]
[1747563359916,4.9933,2512.7,2512.3,3.2078]
[1747563360118,0.7958,2512.4,2512.3,3.2078]
[1747563360318,0.7958,2512.4,2512.3,4.00363]
[1747563360621,0.7958,2512.4,2512.3,3.2078]
[1747563360920,0.7958,2512.4,2512.3,4.00363]
[1747563361618,1.3194,2512.5,2512.3,3.2078]
[1747563361817,3.058,2512.4,2512.3,3.2078]
[1747563362318,0.7958,2512.4,2512.3,4.0036]
[1747563363020,2.0571,2512.4,2512.3,3.2078]
[1747563363213,5.1151,2512.4,2512.3,3.2078]
[1747563363618,0.79586,2512.3,2512.2,0.79585]
[1747563363918,0.79589,2512.1,2512.0,4.00371]
[1747563364615,2.05719,2512.1,2512.0,4.00371]
[1747563365228,5.11519,2512.1,2512.0,4.00371]
[1747563367737,5.11519,2512.1,2512.0,3.2078]
[1747563367942,5.11519,2512.1,2512.0,4.00372]
[1747563368331,0.79598,2511.9,2511.8,0.79597]
[1747563368536,2.16845,2512.0,2511.9,0.79593]
[1747563368835,3.8539,2512.1,2512.0,0.79592]
[1747563369538,0.79595,2512.0,2511.9,0.79594]
[1747563369742,0.79599,2511.9,2511.8,0.79597]
[1747563370232,0.79601,2511.8,2511.7,0.79599]
[1747563370426,0.6505,2511.8,2511.7,0.79599]
[1747563371030,1.44649,2511.8,2511.7,0.79599]
[1747563371235,4.50449,2511.8,2511.7,0.79599]
[1747563373739,0.79602,2511.7,2511.6,4.00383]
[1747563373934,0.79602,2511.7,2511.6,3.2078]
[1747563374240,4.50562,2511.7,2511.6,4.00385]
[1747563376140,3.7096,2511.7,2511.6,4.00385]
[1747563376345,3.058,2511.7,2511.6,4.00385]
[1747563376546,3.058,2511.7,2511.6,5.25425]
[1747563376841,3.058,2511.7,2511.6,4.00385]
[1747563377041,3.058,2511.7,2511.6,5.25425]
[1747563378342,3.85402,2511.7,2511.6,5.25425]
[1747563378641,3.85402,2511.7,2511.6,4.00385]
[1747563380443,5.21860003,2511.7,2511.6,4.00385]
[1747563382049,4.42258003,2511.7,2511.6,4.00385]
[1747563382344,5.21860003,2511.7,2511.6,4.00385]
[1747563384443,4.42258003,2511.7,2511.6,4.00385]
[1747563385044,4.42258003,2511.7,2511.6,5.32565]
[1747563386348,3.2078,2512.2,2512.1,0.79589]
[1747563387150,6.2658,2512.2,2512.1,0.79589]
[1747563387448,7.06168,2512.2,2512.1,0.79589]
[1747563387845,0.79591,2512.1,2512.0,0.7959]
[1747563388052,2.06621,2512.1,2512.0,0.7959]
[1747563388352,1.2703,2512.1,2512.0,0.7959]
[1747563388649,2.06619,2512.1,2512.0,0.7959]
[1747563389146,5.12419,2512.1,2512.0,0.7959]
[1747563391251,4.3283,2512.1,2512.0,0.7959]
[1747563391952,4.3283,2512.1,2512.0,1.4303]
[1747563394053,4.3283,2512.1,2512.0,2.64017976]
[1747563394352,4.3283,2512.1,2512.0,2.00577976]
[1747563395253,1.2703,2512.1,2512.0,3.92267976]
[1747563395454,9.3086,2512.4,2512.3,0.79583]
[1747563395849,1.3276,2512.4,2512.3,0.79583]
[1747563396248,4.3856,2512.4,2512.3,0.79583]
[1747563396545,3.058,2512.4,2512.3,0.79583]
[1747563396747,3.058,2512.4,2512.3,2.16743]
[1747563397148,1.3634,2512.5,2512.4,0.7958]
[1747563397349,1.3634,2512.5,2512.4,2.8193]
[1747563397950,1.2909,2512.7,2512.6,0.79573]
[1747563398151,1.3634,2512.8,2512.7,0.7957]
[1747563399043,2.15907,2512.8,2512.7,0.7957]
[1747563399449,0.7957,2512.7,2512.6,3.2078]
[1747563399655,2.1317,2512.7,2512.6,3.2078]
[1747563399953,2.1317,2512.7,2512.6,0.79573]
[1747563400145,1.336,2512.7,2512.6,0.79573]
[1747563400348,2.1317,2512.7,2512.6,0.79573]
[1747563401255,5.1897,2512.7,2512.6,0.79573]
[1747563402256,4.394,2512.7,2512.6,0.79573]
[1747563402458,5.1897,2512.7,2512.6,0.79573]
[1747563402756,4.394,2512.7,2512.6,0.79573]
[1747563402957,4.394,2512.7,2512.6,4.00353]
[1747563403757,5.1897,2512.7,2512.6,4.00353]
[1747563404158,2.1317,2512.7,2512.6,4.00353]
[1747563404361,1.336,2512.7,2512.6,4.00353]
[1747563405458,1.336,2512.7,2512.6,4.65153]
[1747563407057,9.99552,2513.0,2512.9,0.79564]
[1747563408361,13.05352,2513.0,2512.9,0.79564]
[1747563408755,4.3489,2513.0,2512.9,0.79564]
[1747563408957,3.058,2513.0,2512.9,0.79564]
[1747563409156,1.2916,2513.2,2513.1,0.79557]
[1747563409955,2.08714,2513.2,2513.1,0.79557]
[1747563410156,5.14514,2513.2,2513.1,0.79557]
[1747563410563,4.3496,2513.2,2513.1,0.79557]
[1747563411163,5.14514,2513.2,2513.1,0.79557]
[1747563412261,2.08714,2513.2,2513.1,0.79557]
[1747563412462,1.2916,2513.2,2513.1,4.00337]
[1747563414352,1.2916,2513.2,2513.1,5.90117]
[1747563416361,4.51328943,2513.9,2513.1,15.70833]
[1747563416567,1.30548943,2513.9,2513.8,0.79535]
[1747563416968,0.79532,2513.9,2513.8,0.79535]
[1747563417161,0.79536,2513.8,2513.7,0.79536]
[1747563417367,1.2872,2514.1,2513.5,9.9413]
[1747563417559,1.46639,2513.7,2513.6,0.79542]
[1747563417961,0.79543,2513.6,2513.5,8.71743]
[1747563418168,0.79545,2513.5,2513.4,4.00326]
[1747563418368,0.79545,2513.5,2513.4,0.79546]
[1747563418567,1.44604,2513.6,2513.5,0.79545]
[1747563418969,0.6506,2513.6,2513.5,0.79545]
[1747563419164,3.7086,2513.6,2513.5,0.79545]
[1747563420157,0.6506,2513.6,2513.5,0.79545]
[1747563420363,0.6506,2513.6,2513.5,5.12334244]
[1747563420660,3.729,2513.7,2513.6,0.79542]
[1747563420860,3.729,2513.7,2513.6,2.12992]
[1747563421271,0.671,2513.7,2513.6,2.12992]
[1747563421873,1.43847,2514.1,2514.0,0.79529]
[1747563422074,4.49647,2514.1,2514.0,0.79529]
[1747563422976,0.7953,2514.0,2513.9,0.7953]
[1747563423274,1.431,2514.0,2513.9,0.7953]
[1747563423772,0.6357,2514.0,2513.9,0.7953]
[1747563424871,1.43099,2514.0,2513.9,0.7953]
[1747563425179,0.6357,2514.0,2513.9,0.7953]
[1747563428476,1.43099,2514.0,2513.9,0.7953]
[1747563429180,4.48899,2514.0,2513.9,0.7953]
[1747563430182,3.6937,2514.0,2513.9,0.7953]
[1747563430483,4.9573,2514.0,2513.9,0.7953]
[1747563431085,5.75259,2514.0,2513.9,0.7953]
[1747563435784,0.79535,2513.8,2513.7,4.00317]
[1747563436184,3.85335,2513.8,2513.7,4.00317]
[1747563436687,3.85335,2513.8,2513.7,3.2078]
[1747563437887,0.79548,2513.5,2513.4,0.79546]
[1747563438988,2.16238,2513.5,2513.4,0.79546]
[1747563439187,5.22038,2513.5,2513.4,0.79546]
[1747563439488,0.79551,2513.4,2513.3,0.7955]
[1747563439684,2.16241,2513.4,2513.3,0.7955]
[1747563440185,0.79551,2513.3,2513.2,4.00332]
[1747563440489,2.80491,2513.3,2513.2,4.00332]
[1747563441179,5.86291,2513.3,2513.2,4.00332]
[1747563443796,0.7956,2513.1,2512.9,0.685]
[1747563444103,1.3025,2513.0,2512.9,0.79564]
[1747563444494,2.09811,2513.0,2512.9,0.79564]
[1747563444696,2.09811,2513.0,2512.9,2.00300234]
[1747563444995,1.3025,2513.0,2512.9,2.00300234]
[1747563445298,4.3605,2513.0,2512.9,2.00300234]
[1747563446702,5.15611,2513.0,2512.9,5.21080234]
[1747563446996,5.15611,2513.0,2512.9,4.41516234]
[1747563447598,5.15611,2513.0,2512.9,3.2078]
[1747563452003,0.79577,2512.6,2512.5,0.79574]
[1747563452195,0.79572,2512.7,2512.6,0.7957]
[1747563452796,2.13852,2512.7,2512.6,0.7957]
[1747563453202,5.19652,2512.7,2512.6,0.7957]
[1747563454605,4.4008,2512.7,2512.6,0.7957]
[1747563455105,5.1965,2512.7,2512.6,0.7957]
[1747563455499,4.4008,2512.7,2512.6,0.7957]
[1747563456403,5.1965,2512.7,2512.6,0.7957]
[1747563461909,4.4008,2512.7,2512.6,0.7957]
[1747563462206,5.1965,2512.7,2512.6,0.7957]
[1747563465110,4.4008,2512.7,2512.6,0.7957]
[1747563465309,4.4008,2512.7,2512.6,4.0035]
[1747563466212,1.3428,2512.7,2512.6,4.0035]
[1747563470216,0.79563,2513.0,2512.9,0.79561]
[1747563470410,2.08103,2513.0,2512.9,0.79561]
[1747563471214,5.13903,2513.0,2512.9,0.79561]
[1747563474819,0.79564,2512.9,2512.8,1.45145]
[1747563475019,0.79567,2512.8,2512.7,1.48088]
[1747563475616,2.09657,2512.8,2512.7,1.48088]
[1747563476621,0.7957,2512.7,2512.6,4.00352]
[1747563476815,3.4344,2512.7,2512.6,4.00352]
[1747563477020,3.52658003,2512.7,2512.6,4.00352]